fUST/lending_fUST_20250120
["ID","MTS","AMOUNT","RATE_DAILY","PERIOD"]
[349688505,1737377450958,-500.0,0.00021917,3]
[349688507,1737377450967,-500.0,0.00021917,3]
[349688509,1737377450977,-500.48279249,0.00021917,3]
[349688511,1737377450986,-500.0,0.00021917,3]
[349688513,1737377450995,-500.0,0.00021917,3]
[349688515,1737377451006,-500.0,0.00021917,3]
[349688517,1737377451020,-500.0,0.00021917,3]
[349688519,1737377451030,-500.0,0.00021917,3]
[349688520,1737377451039,-500.0,0.00021917,3]
[349688522,1737377451049,-500.0,0.00021917,3]
[349688525,1737377451062,-500.0,0.00021917,3]
[349688527,1737377451071,-500.0,0.00021917,3]
[349688529,1737377451081,-501.841338,0.00021917,3]
[349688530,1737377451092,-500.0,0.00021917,3]
[349688532,1737377451101,-500.0,0.00021917,3]
[349688534,1737377451111,-500.0,0.00021917,3]
[349688537,1737377451121,-500.0,0.00021917,3]
[349688539,1737377451131,-500.0,0.00021917,3]
[349688541,1737377451144,-500.0,0.00021917,3]
[349688543,1737377451154,-500.0,0.00021917,3]
[349688545,1737377451164,-500.0,0.00021917,3]
[349688547,1737377451174,-500.0,0.00021917,3]
[349688549,1737377451184,-500.0,0.00021917,3]
[349688551,1737377451195,-500.0,0.00021917,3]
[349688553,1737377451205,-500.0,0.00021917,3]
[349688555,1737377451214,-500.0,0.00021917,3]
[349688557,1737377451224,-500.0,0.00021917,3]
[349688559,1737377451234,-500.0,0.00021917,3]
[349688561,1737377451244,-500.0,0.00021917,3]
[349688563,1737377451260,-500.0,0.00021917,3]
[349688565,1737377451270,-503.678075,0.00021917,3]
[349688567,1737377451279,-369.16317892,0.00021917,3]
[349688569,1737377451289,-500.0,0.00021917,3]
[349688571,1737377451299,-500.0,0.00021917,3]
[349688573,1737377451308,-500.0,0.00021917,3]
[349688575,1737377451317,-500.0,0.00021917,3]
[349688577,1737377451326,-500.0,0.00021917,3]
[349688579,1737377451335,-500.0,0.00021917,3]
[349688581,1737377451344,-500.0,0.00021917,3]
[349688583,1737377451353,-500.0,0.00021917,3]
[349688585,1737377451363,-500.0,0.00021917,3]
[349688587,1737377451373,-500.0,0.00021973,2]
[349688589,1737377451383,-501.6981809,0.00021973,2]
[349688591,1737377451393,-505.97771661,0.00021973,2]
[349688593,1737377451402,-213.51825717,0.00022003,3]
[349688595,1737377451412,-500.0,0.00022053,3]
[349688597,1737377451422,-2004.16,0.00022053,3]
[349688599,1737377451431,-2004.16,0.00022053,3]
[349688601,1737377451440,-274.23148004,0.00022053,3]
[349688605,1737377451466,-225.76851996,0.00022053,3]
[349688607,1737377451475,-105.59148004,0.00022053,3]
[349692604,1737377785015,166.084269,0.00013973,2]
[349692613,1737378323536,3044.67,0.000167,2]
[349692615,1737378572377,464.0,0.00024,120]
[349692644,1737378632359,-570.64086112,0.00017709,2]
[349692645,1737378632414,-35.66529907,0.00017709,2]
[349692646,1737378632423,-606.30616019,0.00017888,2]
[349692647,1737378632432,-61.9575248,0.000189,2]
[349692648,1737378632443,-376.35515087,0.000189,2]
[349692649,1737378632452,-303.16672806,0.00019,2]
[349692650,1737378632462,-303.16672806,0.0001919,2]
[349692651,1737378632474,-303.16672806,0.0001938,2]
[349692652,1737378632482,-303.16672806,0.0001957,2]
[349692653,1737378632491,-234.542289,0.0001967,2]
[349692654,1737378632500,-303.16672806,0.0001976,2]
[349692655,1737378632509,-454.75009209,0.0001995,4]
[349692656,1737378632519,-2616.0,0.0002,2]
[349692657,1737378632527,-640.90301762,0.0002,3]
[349692658,1737378632537,-450.58926523,0.0002014,4]
[349692659,1737378632546,-106.52899249,0.00020242,2]
[349692686,1737378638260,-63.06827751,0.00020242,2]
[349692688,1737378638270,-1000.0,0.00021,21]
[349692690,1737378638279,-300.0,0.00021599,2]
[349692692,1737378638288,-391.83501025,0.000216,4]
[349692696,1737378638318,-615.17290421,0.000216,4]
[349692697,1737378638329,-310.66551479,0.000216,4]
[349692796,1737378643322,-1298.32657075,0.000216,4]
[349692797,1737378643332,-3432.06607023,0.00021684,2]
[349692798,1737378643341,-238.72330219,0.00021817,2]
[349692799,1737378643351,-206.15555884,0.000219,3]
[349692800,1737378643360,-206.039,0.00021916,2]
[349692801,1737378643369,-500.0,0.00021917,3]
[349692802,1737378643379,-500.0,0.00021917,3]
[349692803,1737378643391,-500.0,0.00021917,3]
[349692804,1737378643400,-500.0,0.00021917,3]
[349692805,1737378643410,-500.0,0.00021917,3]
[349692806,1737378643419,-119.16569534,0.00021917,2]
[349692819,1737378646309,-1298.32657075,0.00021384,2]
[349692822,1737378646320,-380.83430466,0.00021917,2]
[349692823,1737378646329,-500.0,0.00021917,3]
[349692825,1737378646339,-500.0,0.00021917,3]
[349692827,1737378646348,-500.0,0.00021917,3]
[349692829,1737378646357,-500.0,0.00021917,3]
[349692831,1737378646366,-500.0,0.00021917,3]
[349692832,1737378646376,-1169.1,0.00021917,3]
[349692834,1737378646386,-1169.1,0.00021917,3]
[349692836,1737378646399,-1169.1,0.00021917,3]
[349692838,1737378646409,-1169.1,0.00021917,3]
[349692841,1737378646418,-1169.1,0.00021917,3]
[349692843,1737378646429,-1169.1,0.00021917,3]
[349692846,1737378646439,-1169.1,0.00021917,3]
[349692847,1737378646448,-1169.1,0.00021917,3]
[349692848,1737378646457,-1169.1,0.00021917,3]
[349692850,1737378646468,-1169.1,0.00021917,3]
[349692852,1737378646478,-500.0,0.00021917,3]
[349692854,1737378646490,-500.0,0.00021917,3]
[349692856,1737378646499,-500.0,0.00021917,3]
[349692857,1737378646509,-504.75722626,0.00021917,3]
[349692858,1737378646518,-500.0,0.00021917,2]
[349692859,1737378646528,-500.0,0.00021917,3]
[349692861,1737378646537,-500.0,0.00021917,3]
[349692863,1737378646547,-500.0,0.00021917,3]
[349692865,1737378646556,-500.0,0.00021917,3]
[349692866,1737378646566,-308.52134638,0.00021917,3]
[349692867,1737378646576,-500.0,0.00021917,3]
[349692868,1737378646586,-500.0,0.00021917,3]
[349692869,1737378646595,-549.06630047,0.00021917,3]
[349692870,1737378646604,-500.0,0.00021917,3]
[349692871,1737378646614,-438.92287716,0.00021917,3]
[349692872,1737378646623,-500.0,0.00021917,3]
[349692873,1737378646633,-500.0,0.00021917,3]
[349692874,1737378646642,-500.0,0.00021917,3]
[349692875,1737378646652,-1081.55,0.00021917,3]
[349692876,1737378646662,-1081.55,0.00021917,3]
[349692877,1737378646671,-1081.55,0.00021917,3]
[349692878,1737378646681,-1081.55,0.00021917,3]
[349692879,1737378646690,-1081.55,0.00021917,3]
[349692880,1737378646700,-1081.55,0.00021917,3]
[349692881,1737378646710,-1081.55,0.00021917,3]
[349692882,1737378646719,-1081.55,0.00021917,3]
[349692883,1737378646729,-500.0,0.00021917,3]
[349692884,1737378646739,-1081.55,0.00021917,3]
[349692885,1737378646748,-1081.55,0.00021917,3]
[349692886,1737378646758,-500.0,0.00021917,3]
[349692888,1737378646767,-500.0,0.00021917,3]
[349692890,1737378646776,-518.68,0.00021917,3]
[349692892,1737378646785,-500.0,0.00021917,3]
[349692894,1737378646795,-500.0,0.00021917,3]
[349692896,1737378646804,-500.0,0.00021917,3]
[349692898,1737378646814,-500.0,0.00021917,3]
[349692900,1737378646824,-500.0,0.00021917,3]
[349692902,1737378646833,-500.0,0.00021917,3]
[349692904,1737378646842,-500.0,0.00021917,3]
[349692906,1737378646852,-500.0,0.00021917,3]
[349692908,1737378646861,-500.0,0.00021917,3]
[349692910,1737378646871,-500.0,0.00021917,3]
[349692912,1737378646880,-500.0,0.00021917,3]
[349692914,1737378646890,-500.0,0.00021917,3]
[349692916,1737378646900,-500.0,0.00021917,3]
[349692918,1737378646909,-500.0,0.00021917,3]
[349692920,1737378646919,-500.0,0.00021917,3]
[349692922,1737378646929,-500.0,0.00021917,3]
[349692924,1737378646938,-339.61899784,0.00021917,3]
[349692926,1737378646949,-500.0,0.00021917,3]
[349692928,1737378646960,-500.0,0.00021917,3]
[349692930,1737378646971,-500.0,0.00021917,3]
[349692932,1737378646982,-503.1017637,0.00021917,3]
[349692934,1737378647000,-500.0,0.00021917,3]
[349692936,1737378647011,-500.0,0.00021917,3]
[349692938,1737378647022,-500.0,0.00021917,3]
[349692940,1737378647032,-500.0,0.00021917,3]
[349692942,1737378647042,-529.91499423,0.00021917,3]
[349692944,1737378647052,-500.0,0.00021917,3]
[349692946,1737378647060,-500.0,0.00021917,3]
[349692948,1737378647069,-500.0,0.00021917,3]
[349692950,1737378647079,-500.0,0.00021917,3]
[349692952,1737378647089,-500.0,0.00021917,3]
[349692954,1737378647098,-394.20190693,0.00021917,3]
[349692956,1737378647108,-500.0,0.00021917,3]
[349692958,1737378647117,-500.0,0.00021917,3]
[349692960,1737378647127,-500.0,0.00021917,2]
[349692962,1737378647138,-500.0,0.00021917,3]
[349692964,1737378647147,-500.0,0.00021917,3]
[349692966,1737378647157,-500.0,0.00021917,3]
[349692968,1737378647166,-500.0,0.00021917,3]
[349692970,1737378647176,-505.61327145,0.00021917,3]
[349692972,1737378647185,-500.0,0.00021917,3]
[349692974,1737378647194,-500.0,0.00021917,3]
[349692976,1737378647204,-500.0,0.00021917,3]
[349692978,1737378647213,-500.0,0.00021917,3]
[349692980,1737378647222,-500.0,0.00021917,3]
[349692982,1737378647232,-614.32431529,0.00021917,3]
[349692984,1737378647246,-550.51535658,0.00021917,3]
[349692986,1737378647254,-511.88113369,0.00021917,3]
[349692988,1737378647263,-244.73785725,0.00021917,3]
[349692990,1737378647273,-500.0,0.00021917,3]
[349692992,1737378647282,-500.0,0.00021917,3]
[349692994,1737378647291,-254.02952928,0.00021917,3]
[349692996,1737378647300,-500.0,0.00021917,3]
[349692998,1737378647309,-500.0,0.00021917,3]
[349693000,1737378647319,-500.0,0.00021917,3]
[349693002,1737378647328,-500.0,0.00021917,3]
[349693004,1737378647337,-500.0,0.00021917,3]
[349693006,1737378647347,-500.0,0.00021917,3]
[349693008,1737378647357,-1972.27,0.00021917,3]
[349693010,1737378647366,-1972.27,0.00021917,3]
[349693012,1737378647376,-1972.27,0.00021917,3]
[349693014,1737378647389,-1972.27,0.00021917,3]
[349693016,1737378647400,-1972.27,0.00021917,3]
[349693018,1737378647409,-1972.27,0.00021917,3]
[349693020,1737378647418,-1972.27,0.00021917,3]
[349693022,1737378647427,-1972.27,0.00021917,3]
[349693024,1737378647438,-500.0,0.00021917,3]
[349693026,1737378647447,-500.0,0.00021917,3]
[349693028,1737378647457,-500.0,0.00021917,3]
[349693030,1737378647467,-500.0,0.00021917,3]
[349693032,1737378647477,-560.32888132,0.00021917,3]
[349693034,1737378647487,-500.0,0.00021917,3]
[349693036,1737378647500,-500.0,0.00021917,3]
[349693038,1737378647509,-500.0,0.00021917,3]
[349693040,1737378647518,-500.0,0.00021917,3]
[349693042,1737378647527,-500.0,0.00021917,3]
[349693044,1737378647536,-500.0,0.00021917,3]
[349693046,1737378647545,-500.0,0.00021917,3]
[349693048,1737378647554,-500.0,0.00021917,3]
[349693061,1737378647653,-500.0,0.00021917,3]
[349693064,1737378647689,-500.0,0.00021917,3]
[349693066,1737378647699,-650.16,0.00021917,3]
[349693068,1737378647708,-512.68794293,0.00021917,3]
[349693070,1737378647718,-500.0,0.00021917,3]
[349693072,1737378647727,-500.0,0.00021917,3]
[349693074,1737378647737,-500.0,0.00021917,3]
[349693076,1737378647749,-500.0,0.00021917,3]
[349693078,1737378647758,-500.0,0.00021917,3]
[349693080,1737378647767,-500.0,0.00021917,3]
[349693082,1737378647776,-500.0,0.00021917,3]
[349693084,1737378647786,-500.0,0.00021917,3]
[349693086,1737378647795,-500.0,0.00021917,3]
[349693088,1737378647805,-500.0,0.00021917,3]
[349693090,1737378647814,-500.0,0.00021917,3]
[349693092,1737378647824,-500.0,0.00021917,3]
[349693094,1737378647834,-500.0,0.00021917,3]
[349693096,1737378647844,-500.0,0.00021917,3]
[349693098,1737378647854,-500.0,0.00021917,3]
[349693100,1737378647863,-500.0,0.00021917,3]
[349693103,1737378647873,-501.67226106,0.00021917,3]
[349693105,1737378647883,-500.0,0.00021917,3]
[349693107,1737378647892,-500.0,0.00021917,3]
[349693108,1737378647901,-500.0,0.00021917,3]
[349693110,1737378647911,-500.0,0.00021917,3]
[349693112,1737378647920,-500.0,0.00021917,3]
[349693115,1737378647930,-500.0,0.00021917,3]
[349693116,1737378647939,-519.48586166,0.00021917,3]
[349693118,1737378647948,-500.0,0.00021917,3]
[349693120,1737378647958,-500.0,0.00021917,3]
[349693123,1737378647967,-500.0,0.00021917,3]
[349693125,1737378647977,-500.0,0.00021917,3]
[349693127,1737378647986,-500.0,0.00021917,3]
[349693129,1737378648000,-510.78865784,0.00021917,3]
[349693130,1737378648009,-500.0,0.00021917,3]
[349693132,1737378648019,-500.0,0.00021917,3]
[349693134,1737378648028,-170.47568167,0.00021917,3]
[349693136,1737378648039,-500.0,0.00021917,3]
[349693138,1737378648050,-500.0,0.00021917,3]
[349693141,1737378648059,-516.2492969,0.00021917,3]
[349693143,1737378648069,-500.0,0.00021917,3]
[349693144,1737378648078,-500.0,0.00021917,3]
[349693147,1737378648088,-500.0,0.00021917,3]
[349693149,1737378648098,-500.0,0.00021917,3]
[349693151,1737378648107,-500.0,0.00021917,3]
[349693153,1737378648118,-500.0,0.00021917,3]
[349693155,1737378648127,-500.0,0.00021917,3]
[349693157,1737378648137,-500.0,0.00021917,3]
[349693159,1737378648147,-500.0,0.00021917,3]
[349693161,1737378648156,-500.0,0.00021917,3]
[349693163,1737378648166,-500.0,0.00021917,3]
[349693165,1737378648180,-500.0,0.00021917,3]
[349693167,1737378648190,-500.0,0.00021917,3]
[349693169,1737378648199,-192.78116122,0.00021917,3]
[349693171,1737378648208,-500.0,0.00021917,3]
[349693173,1737378648218,-500.0,0.00021917,3]
[349693175,1737378648228,-500.0,0.00021917,3]
[349693177,1737378648238,-500.0,0.00021917,3]
[349693179,1737378648250,-587.20430714,0.00021917,3]
[349693181,1737378648259,-500.0,0.00021917,3]
[349693183,1737378648269,-198.57837585,0.00021917,3]
[349693185,1737378648278,-500.0,0.00021917,3]
[349693187,1737378648287,-500.0,0.00021917,3]
[349693189,1737378648297,-513.56590105,0.00021917,3]
[349693191,1737378648307,-500.0,0.00021917,3]
[349693193,1737378648316,-500.0,0.00021917,3]
[349693195,1737378648326,-500.0,0.00021917,3]
[349693197,1737378648336,-500.0,0.00021917,3]
[349693199,1737378648345,-500.0,0.00021917,3]
[349693201,1737378648355,-602.56162415,0.00021917,3]
[349693203,1737378648364,-500.0,0.00021917,3]
[349693205,1737378648373,-500.0,0.00021917,3]
[349693207,1737378648383,-500.0,0.00021917,3]
[349693209,1737378648393,-500.0,0.00021917,3]
[349693210,1737378648406,-500.0,0.00021917,3]
[349693212,1737378648415,-500.0,0.00021917,3]
[349693214,1737378648425,-500.0,0.00021917,3]
[349693217,1737378648435,-500.0,0.00021917,3]
[349693219,1737378648445,-500.0,0.00021917,3]
[349693220,1737378648454,-500.0,0.00021917,3]
[349693223,1737378648464,-500.0,0.00021917,3]
[349693224,1737378648474,-500.0,0.00021917,3]
[349693226,1737378648484,-498.10414478,0.00021917,3]
[349693229,1737378648498,-500.0,0.00021917,3]
[349693230,1737378648507,-500.0,0.00021917,3]
[349693233,1737378648516,-500.0,0.00021917,3]
[349693235,1737378648526,-500.0,0.00021917,3]
[349693237,1737378648536,-500.0,0.00021917,3]
[349693239,1737378648546,-500.0,0.00021917,3]
[349693241,1737378648555,-500.0,0.00021917,3]
[349693242,1737378648566,-500.0,0.00021917,3]
[349693245,1737378648576,-500.0,0.00021917,3]
[349693247,1737378648586,-500.0,0.00021917,3]
[349693249,1737378648595,-256.18645909,0.00021917,3]
[349693250,1737378648605,-500.0,0.00021917,3]
[349693253,1737378648614,-500.0,0.00021917,3]
[349693254,1737378648623,-500.0,0.00021917,3]
[349693257,1737378648633,-500.0,0.00021917,3]
[349693259,1737378648643,-500.0,0.00021917,3]
[349693261,1737378648652,-500.0,0.00021917,3]
[349693263,1737378648662,-516.16,0.00021917,3]
[349693265,1737378648671,-500.0,0.00021917,3]
[349693267,1737378648681,-640.11,0.00021917,3]
[349693269,1737378648690,-500.0,0.00021917,3]
[349693271,1737378648699,-500.0,0.00021917,3]
[349693273,1737378648709,-1000.0,0.00022,22]
[349693275,1737378648719,-206.15555864,0.00022007,3]
[349693277,1737378648729,-1972.27,0.00022052,3]
[349693279,1737378648738,-1169.1,0.00022053,3]
[349693281,1737378648751,-1169.1,0.00022053,3]
[349693283,1737378648761,-1081.55,0.00022053,3]
[349693285,1737378648770,-1081.55,0.00022053,3]
[349693287,1737378648780,-1972.27,0.00022053,3]
[349693289,1737378648789,-1972.27,0.00022053,3]
[349693291,1737378648799,-500.0,0.00022053,3]
[349693293,1737378648808,-500.0,0.00022053,3]
[349693295,1737378648817,-500.0,0.00022054,3]
[349693297,1737378648826,-500.0,0.00022054,3]
[349693299,1737378648835,-500.0,0.00022054,3]
[349693301,1737378648845,-500.0,0.00022054,3]
[349693303,1737378648854,-500.0,0.00022054,3]
[349693305,1737378648864,-500.0,0.00022054,3]
[349693307,1737378648873,-500.0,0.00022054,3]
[349693309,1737378648883,-500.0,0.00022054,3]
[349693311,1737378648892,-500.0,0.00022054,3]
[349693313,1737378648902,-500.0,0.00022054,3]
[349693315,1737378648912,-500.0,0.00022054,3]
[349693317,1737378648921,-500.0,0.00022054,3]
[349693319,1737378648930,-500.0,0.00022054,3]
[349693321,1737378648940,-500.0,0.00022054,3]
[349693323,1737378648949,-500.0,0.00022054,3]
[349693325,1737378648959,-500.0,0.00022054,3]
[349693327,1737378648968,-500.0,0.00022054,3]
[349693329,1737378648978,-529.17843527,0.00022054,3]
[349693331,1737378648987,-500.0,0.00022054,3]
[349693333,1737378649000,-637.1,0.00022054,3]
[349693335,1737378649010,-297.58400498,0.00022054,3]
[349693337,1737378649019,-500.0,0.00022054,3]
[349693339,1737378649029,-500.0,0.00022054,3]
[349693341,1737378649038,-500.11280654,0.00022054,3]
[349693343,1737378649048,-500.0,0.00022054,3]
[349693345,1737378649057,-396.41569769,0.00022054,3]
[349693347,1737378649067,-500.0,0.00022054,3]
[349693349,1737378649076,-500.0,0.00022054,3]
[349693351,1737378649086,-543.16,0.00022054,3]
[349693354,1737378649096,-500.0,0.00022054,2]
[349693356,1737378649105,-500.0,0.00022054,3]
[349693358,1737378649114,-468.25779566,0.00022054,3]
[349693360,1737378649123,-500.0,0.00022054,3]
[349693361,1737378649132,-500.0,0.00022054,3]
[349693364,1737378649142,-515.40166202,0.00022054,3]
[349693366,1737378649152,-500.0,0.00022054,3]
[349693368,1737378649161,-162.18838518,0.00022054,3]
[349693370,1737378649171,-500.0,0.00022054,3]
[349693372,1737378649180,-500.0,0.00022054,3]
[349693374,1737378649189,-500.0,0.00022054,3]
[349693376,1737378649198,-500.0,0.00022054,3]
[349693378,1737378649207,-500.0,0.00022054,3]
[349693380,1737378649216,-518.48413427,0.00022054,3]
[349693382,1737378649226,-500.0,0.00022054,3]
[349693384,1737378649235,-500.0,0.00022054,3]
[349693386,1737378649245,-500.0,0.00022054,3]
[349693388,1737378649254,-500.0,0.00022054,3]
[349693390,1737378649263,-500.0,0.00022054,3]
[349693392,1737378649273,-514.15261162,0.00022054,3]
[349693394,1737378649282,-650.16,0.00022054,3]
[349693396,1737378649291,-515.36453657,0.00022054,3]
[349693398,1737378649300,-500.0,0.00022054,3]
[349693400,1737378649310,-500.0,0.00022054,3]
[349693402,1737378649319,-500.0,0.00022054,3]
[349693403,1737378649328,-500.0,0.00022054,3]
[349693406,1737378649337,-500.0,0.00022054,3]
[349693408,1737378649347,-528.48245023,0.00022054,3]
[349693410,1737378649356,-500.0,0.00022054,3]
[349693411,1737378649366,-422.38571152,0.00022054,3]
[349693414,1737378649375,-500.0,0.00022054,3]
[349693416,1737378649387,-500.0,0.00022054,3]
[349693418,1737378649399,-500.0,0.00022054,3]
[349693420,1737378649409,-500.0,0.00022054,3]
[349693422,1737378649418,-500.88,0.00022054,3]
[349693424,1737378649427,-272.26056296,0.00022054,3]
[349693425,1737378649438,-500.0,0.00022054,3]
[349693427,1737378649449,-500.0,0.00022054,3]
[349693430,1737378649458,-500.0,0.00022054,3]
[349693431,1737378649468,-500.0,0.00022054,3]
[349693433,1737378649479,-500.0,0.00022054,3]
[349693436,1737378649489,-500.0,0.00022054,3]
[349693437,1737378649500,-500.0,0.00022054,3]
[349693439,1737378649509,-500.0,0.00022054,3]
[349693441,1737378649519,-500.0,0.00022054,3]
[349693444,1737378649528,-625.47877551,0.00022054,3]
[349693446,1737378649537,-500.0,0.00022054,3]
[349693448,1737378649547,-500.0,0.00022054,3]
[349693449,1737378649556,-500.0,0.00022054,3]
[349693451,1737378649566,-500.0,0.00022054,3]
[349693453,1737378649576,-500.0,0.00022054,3]
[349693455,1737378649585,-500.0,0.00022054,3]
[349693457,1737378649594,-500.0,0.00022054,3]
[349693459,1737378649603,-500.0,0.00022054,3]
[349693461,1737378649612,-500.0,0.00022054,3]
[349693463,1737378649622,-500.0,0.00022054,3]
[349693465,1737378649631,-500.0,0.00022054,3]
[349693467,1737378649641,-500.0,0.00022054,3]
[349693469,1737378649650,-500.0,0.00022054,3]
[349693471,1737378649660,-500.0,0.00022054,3]
[349693473,1737378649669,-500.0,0.00022054,3]
[349693475,1737378649679,-500.0,0.00022054,3]
[349693477,1737378649688,-500.0,0.00022054,3]
[349693480,1737378649697,-500.0,0.00022054,3]
[349693481,1737378649706,-500.0,0.00022054,3]
[349693484,1737378649716,-500.0,0.00022054,3]
[349693486,1737378649725,-500.0,0.00022054,3]
[349693488,1737378649734,-500.0,0.00022054,3]
[349693490,1737378649744,-500.0,0.00022054,3]
[349693491,1737378649753,-500.0,0.00022054,3]
[349693494,1737378649762,-646.32,0.00022054,3]
[349693496,1737378649771,-609.30933581,0.00022054,3]
[349693498,1737378649780,-206.15555864,0.00022114,3]
[349693500,1737378649790,-238.72330215,0.00022151,2]
[349693501,1737378649799,-166.084269,0.00022174,2]
[349693503,1737378649809,-1972.27,0.00022188,3]
[349693506,1737378649818,-1169.1,0.00022189,3]
[349693508,1737378649828,-1081.55,0.00022189,3]
[349693509,1737378649837,-500.0,0.00022189,3]
[349693512,1737378649846,-1169.1,0.0002219,3]
[349693514,1737378649856,-1081.55,0.0002219,3]
[349693515,1737378649865,-598.93330691,0.0002219,2]
[349693518,1737378649875,-157.70959625,0.0002219,2]
[349693519,1737378649884,-500.0,0.0002219,2]
[349693521,1737378649894,-500.0,0.0002219,2]
[349693523,1737378649904,-300.0,0.0002219,2]
[349693525,1737378649913,-500.0,0.0002219,2]
[349693527,1737378649924,-500.0,0.0002219,2]
[349693529,1737378649933,-202.18679593,0.0002219,2]
[349693532,1737378649943,-515.30137488,0.0002219,2]
[349693534,1737378649954,-500.0,0.0002219,2]
[349693536,1737378649963,-500.0,0.0002219,2]
[349693538,1737378649975,-1972.27,0.0002219,3]
[349693540,1737378649984,-500.0,0.0002219,3]
[349693542,1737378649994,-532.48,0.00022191,3]
[349693544,1737378650003,-573.25,0.00022191,3]
[349693546,1737378650013,-500.0,0.00022191,3]
[349693548,1737378650023,-500.0,0.00022191,3]
[349693550,1737378650032,-500.0,0.00022191,3]
[349693552,1737378650042,-500.0,0.00022191,3]
[349693564,1737378650144,-500.0,0.00022191,3]
[349693566,1737378650154,-500.0,0.00022191,3]
[349693568,1737378650164,-324.98261994,0.00022191,3]
[349693570,1737378650173,-422.15304565,0.00022191,3]
[349693579,1737378650248,-77.84695435,0.00022191,3]
[349693581,1737378650258,-595.4,0.00022191,3]
[349693583,1737378650268,-396.25304565,0.00022191,3]
[349693587,1737378881911,166.261308,0.00013973,2]
[349693664,1737379832764,-292.20845045,0.00017685,2]
[349693666,1737379832775,-953.37542148,0.00017764,2]
[349693668,1737379832786,-292.20845045,0.00017864,2]
[349693670,1737379832795,-292.20845045,0.000189,2]
[349693672,1737379832805,-5895.0579411,0.00020315,2]
[349693674,1737379832815,-1015.07838353,0.00020644,4]
[349693676,1737379832825,-300.0,0.00020648,2]
[349693678,1737379832835,-2667.783162,0.00020649,2]
[349693681,1737379832845,-24470.18,0.00021053,2]
[349693683,1737379832855,-706.7832656,0.0002137,2]
[349693685,1737379832865,-156.93,0.00021917,2]
[349693687,1737379832874,-164.831,0.00021917,2]
[349693689,1737379832884,-500.0,0.00021917,3]
[349693691,1737379832894,-516.60631559,0.00021917,3]
[349693693,1737379832905,-254.60466115,0.00021917,3]
[349693695,1737379832914,-500.0,0.00021917,3]
[349693697,1737379832923,-500.0,0.00021917,3]
[349693699,1737379832933,-500.0,0.00021917,3]
[349693701,1737379832942,-500.0,0.00021917,3]
[349693704,1737379832953,-343.90485804,0.00021917,3]
[349693706,1737379832966,-500.0000008,0.00021917,3]
[349693708,1737379832976,-212.17547302,0.00021917,3]
[349693711,1737379832986,-278.82034959,0.00021917,3]
[349694155,1737379840631,-292.20845045,0.00017508,2]
[349694156,1737379840641,-205.82294907,0.000219,3]
[349694157,1737379840650,-221.17965041,0.00021917,3]
[349694158,1737379840661,-647.65015798,0.00021917,3]
[349694159,1737379840670,-500.0,0.00021917,3]
[349694160,1737379840680,-548.95000004,0.00021917,3]
[349694161,1737379840689,-501.93033369,0.00021917,3]
[349694162,1737379840698,-500.0,0.00021917,3]
[349694163,1737379840708,-500.0,0.00021917,3]